[Event "Turkish Cup 2024"]
[Site "Denizli"]
[Date "2024.08.05"]
[Round "10"]
[White "Eroglu, Berke"]
[Black "Zuberoglu, Ibrahim Berk"]
[Result "1/2-1/2"]
[ECO "B26"]
[WhiteElo "1873"]
[BlackElo "1870"]
[Annotator "NA RC"]
[PlyCount "109"]
[EventDate "2024.08.01"]
[EventType "swiss"]
[EventCountry "TUR"]
[SourceTitle "playchess.com"]
[Source "ChessBase"]
[SourceQuality "1"]
[TimeControl "5400+30"]

1. e4 {[%emt 0:01:00]} c5 {[%emt 0:01:00]} 2. Nc3 {[%emt 0:00:30]} d6 {[%emt 0:00:30]} 3. g3 {[%emt 0:00:30]} g6 {[%emt 0:00:30]} 4. Bg2 {[%emt 0:00:30]} Bg7 {[%emt 0:00:00]} 5. d3 {[%emt 0:00:30]} Nc6 {[%emt 0:00:00]} 6. Be3 {[%emt 0:00:00]} e5 {[%emt 0:00:30]} 7. Nh3 {[%emt 0:01:00]} Nf6 {[%emt 0:05:30]} 8. O-O {[%emt 0:04:30]} O-O {[%emt 0:01:30]} 9. f3 {[%emt 0:04:30]} Nd4 {[%emt 0:02:30]} 10. Qd2 {[%emt 0:01:30]} Be6 {[%emt 0:06:30]} 11. Nd1 {[%emt 0:01:30]} Qc8 {[%emt 0:03:30]} 12. Nhf2 {[%emt 0:03:30]} d5 {[%emt 0:05:30]} 13. c3 {[%emt 0:01:30]} Nb5 {[%emt 0:01:30]} 14. Bh6 {[%emt 0:02:30]} c4 {[%emt 0:06:30]} 15. Bxg7 {[%emt 0:00:30]} Kxg7 {[%emt 0:00:30]} 16. d4 {[%emt 0:17:30]} exd4 {[%emt 0:04:30]} 17. e5 {[%emt 0:01:30]} Ng8 {[%emt 0:02:30]} 18. cxd4 {[%emt 0:01:30]} Ne7 {[%emt 0:01:30]} 19. a4 {[%emt 0:04:30]} Nc7 {[%emt 0:00:30]} 20. Ne3 {[%emt 0:01:30]} Nf5 {[%emt 0:02:30]} 21. Nfg4 {[%emt 0:08:30]} Nxe3 {[%emt 0:00:30]} 22. Nxe3 {[%emt 0:02:30]} f5 {[%emt 0:09:30]} 23. f4 {[%emt 0:00:30]} a5 {[%emt 0:05:30]} 24. b3 {[%emt 0:02:30]} cxb3 {[%emt 0:03:30]} 25. Rfc1 {[%emt 0:02:30]} Qd7 {[%emt 0:04:30]} 26. Qc3 {[%emt 0:01:30]} Na6 {[%emt 0:02:30]} 27. Qxb3 {[%emt 0:00:00]} Nb4 {[%emt 0:01:30]} 28. Nc2 {[%emt 0:03:00]} Rfc8 {[%emt 0:03:30]} 29. Bf1 {[%emt 0:10:30]} b5 {[%emt 0:07:08]} 30. axb5 {[%emt 0:03:58]} Qa7 {[%emt 0:00:01]} 31. b6 {[%emt 0:09:34]} Qxb6 {[%emt 0:01:53]} 32. Qb2 {[%emt 0:00:23]} Rab8 {[%emt 0:10:37]} 33. Nxb4 {[%emt 0:01:41]} Rxc1 {[%emt 0:01:27]} 34. Rxc1 {[%emt 0:00:18]} Qxb4 {[%emt 0:00:53]} 35. Rc7+ {[%emt 0:01:27]} Kf8 {[%emt 0:02:11]} 36. Qa1 {[%emt 0:01:35]} Qd2 {[%emt 0:03:27]} 37. Qa3+ {[%emt 0:01:14]} Qb4 {[%emt 0:00:35]} 38. Rc3 {[%emt 0:00:53]} Ke8 {[%emt 0:00:27]} 39. Qxb4 {[%emt 0:00:48]} axb4 {[%emt 0:00:36]} 40. Rb3 {[%emt 0:01:03]} Bd7 {[%emt 0:00:17]} 41. Rb2 {[%emt 0:00:36]} Ba4 {[%emt 0:01:23]} 42. Bg2 {[%emt 0:00:24]} Bc6 {[%emt 0:01:09]} 43. Kf2 {[%emt 0:00:14]} Kd7 {[%emt 0:00:00]} 44. Ke3 {[%emt 0:00:35]} Ke6 {[%emt 0:00:34]} 45. Kd2 {[%emt 0:00:14]} Ba4 {[%emt 0:00:18]} 46. Bf1 {[%emt 0:00:54]} Kd7 {[%emt 0:00:44]} 47. Ra2 {[%emt 0:02:35]} Bb3 {[%emt 0:00:21]} 48. Ra5 {[%emt 0:00:27]} Bc4 {[%emt 0:00:20]} 49. Bxc4 {[%emt 0:01:18]} dxc4 {[%emt 0:00:01]} 50. d5 {[%emt 0:00:08]} c3+ {[%emt 0:01:42]} 51. Kc1 {[%emt 0:00:41]} Kc7 {[%emt 0:00:51]} 52. Ra4 {[%emt 0:02:09]} Rb5 {[%emt 0:00:31]} 53. d6+ {[%emt 0:00:38]} Kc6 {[%emt 0:00:28]} 54. Ra7 {[%emt 0:00:47]} Rb7 {[%emt 0:00:00]} 55. e6 {[%emt 0:00:27]} 1/2-1/2

[Event "Turkish Cup 2024"]
[Site "Denizli"]
[Date "2024.08.05"]
[Round "10"]
[White "Kilic, Cihan"]
[Black "Sezis, Doruk"]
[Result "1-0"]
[ECO "D00"]
[WhiteElo "1869"]
[BlackElo "1932"]
[Annotator "NA RC"]
[PlyCount "55"]
[EventDate "2024.08.01"]
[EventType "swiss"]
[EventCountry "TUR"]
[SourceTitle "playchess.com"]
[Source "ChessBase"]
[SourceQuality "1"]
[TimeControl "5400+30"]

1. d4 {[%emt 0:03:00]} Nf6 {[%emt 0:02:00]} 2. Bg5 {[%emt 0:00:30]} d5 {[%emt 0:00:00]} 3. e3 {[%emt 0:00:30]} c5 {[%emt 0:00:00]} 4. Nd2 {[%emt 0:00:30]} Nc6 {[%emt 0:00:00]} 5. Ngf3 {[%emt 0:00:30]} Qb6 {[%emt 0:01:00]} 6. dxc5 {[%emt 0:01:30]} Qxb2 {[%emt 0:01:30]} 7. c4 {[%emt 0:02:30]} Nb4 {[%emt 0:24:30]} 8. Nd4 {[%emt 0:06:30]} Bd7 {[%emt 0:24:30]} 9. a3 {[%emt 0:12:30]} Na6 {[%emt 0:04:30]} 10. c6 {[%emt 0:02:30]} bxc6 {[%emt 0:10:30]} 11. Rb1 {[%emt 0:04:30]} Qc3 {[%emt 0:00:30]} 12. cxd5 {[%emt 0:02:30]} c5 {[%emt 0:05:30]} 13. Bxa6 {[%emt 0:06:30]} cxd4 {[%emt 0:00:30]} 14. Bb7 {[%emt 0:03:30]} Rd8 {[%emt 0:00:30]} 15. O-O {[%emt 0:00:30]} dxe3 {[%emt 0:02:30]} 16. Bxe3 {[%emt 0:01:30]} e6 {[%emt 0:08:21]} 17. Bxa7 {[%emt 0:08:30]} Nxd5 {[%emt 0:01:46]} 18. Ne4 {[%emt 0:17:30]} Qa5 {[%emt 0:02:17]} 19. Qd4 {[%emt 0:00:30]} f6 {[%emt 0:04:30]} 20. Rfe1 {[%emt 0:02:30]} Kf7 {[%emt 0:01:46]} 21. Red1 {[%emt 0:05:37]} Ba4 {[%emt 0:00:55]} 22. Bb6 {[%emt 0:02:35]} Nxb6 {[%emt 0:01:16]} 23. Qxd8 {[%emt 0:00:03]} Bxd1 {[%emt 0:00:00]} 24. Rxd1 {[%emt 0:00:31]} Qa4 {[%emt 0:02:04]} 25. Rc1 {[%emt 0:03:53]} Bxa3 {[%emt 0:01:23]} 26. Rc7+ {[%emt 0:01:24]} Kg6 {[%emt 0:00:00]} 27. Qd3 {[%emt 0:00:17]} Rg8 {[%emt 0:01:07]} 28. Nc5+ {[%emt 0:00:23]} 1-0

[Event "Turkish Cup 2024"]
[Site "Denizli"]
[Date "2024.08.05"]
[Round "10"]
[White "Tatlioglu, Ege"]
[Black "Degirmenci, Yagiz"]
[Result "0-1"]
[ECO "C01"]
[WhiteElo "1852"]
[BlackElo "1871"]
[Annotator "NA RC"]
[PlyCount "88"]
[EventDate "2024.08.01"]
[EventType "swiss"]
[EventCountry "TUR"]
[SourceTitle "playchess.com"]
[Source "ChessBase"]
[SourceQuality "1"]
[TimeControl "5400+30"]

1. e4 {[%emt 0:03:00]} a6 {[%emt 0:05:00]} 2. d4 {[%emt 0:03:30]} e6 {[%emt 0:00:30]} 3. c4 {[%emt 0:09:30]} d5 {[%emt 0:02:30]} 4. exd5 {[%emt 0:03:30]} exd5 {[%emt 0:00:30]} 5. Nf3 {[%emt 0:00:30]} Nf6 {[%emt 0:00:00]} 6. Be2 {[%emt 0:02:30]} Be7 {[%emt 0:01:00]} 7. O-O {[%emt 0:01:30]} dxc4 {[%emt 0:01:30]} 8. Bxc4 {[%emt 0:00:30]} O-O {[%emt 0:01:30]} 9. Nc3 {[%emt 0:11:30]} b5 {[%emt 0:00:30]} 10. Bb3 {[%emt 0:00:30]} Bb7 {[%emt 0:03:30]} 11. Bg5 {[%emt 0:01:30]} Nbd7 {[%emt 0:03:30]} 12. Re1 {[%emt 0:02:30]} c5 {[%emt 0:03:30]} 13. a3 {[%emt 0:07:30]} Bxf3 {[%emt 0:07:30]} 14. Qxf3 {[%emt 0:09:30]} cxd4 {[%emt 0:00:30]} 15. Nd5 {[%emt 0:01:30]} Nxd5 {[%emt 0:00:30]} 16. Bxd5 {[%emt 0:01:30]} Bxg5 {[%emt 0:03:30]} 17. Rad1 {[%emt 0:04:30]} Rb8 {[%emt 0:04:30]} 18. Rxd4 {[%emt 0:00:00]} Bf6 {[%emt 0:00:30]} 19. Rd2 {[%emt 0:02:00]} Qc7 {[%emt 0:03:30]} 20. Qf5 {[%emt 0:00:30]} g6 {[%emt 0:02:30]} 21. Qf3 {[%emt 0:01:30]} Kg7 {[%emt 0:00:30]} 22. Red1 {[%emt 0:00:30]} Rbd8 {[%emt 0:01:30]} 23. Qb3 {[%emt 0:03:30]} Nb6 {[%emt 0:00:30]} 24. Rc2 {[%emt 0:02:30]} Qe7 {[%emt 0:02:30]} 25. h4 {[%emt 0:04:30]} Nxd5 {[%emt 0:03:30]} 26. Rxd5 {[%emt 0:00:30]} Qe1+ {[%emt 0:00:30]} 27. Kh2 {[%emt 0:00:30]} Qe6 {[%emt 0:00:00]} 28. Rcd2 {[%emt 0:00:00]} Rxd5 {[%emt 0:01:00]} 29. Qxd5 {[%emt 0:01:00]} Qxd5 {[%emt 0:00:30]} 30. Rxd5 {[%emt 0:00:30]} Bxb2 {[%emt 0:00:30]} 31. a4 {[%emt 0:00:00]} bxa4 {[%emt 0:00:30]} 32. Ra5 {[%emt 0:00:00]} a3 {[%emt 0:00:30]} 33. Rxa6 {[%emt 0:00:30]} Re8 {[%emt 0:00:30]} 34. h5 {[%emt 0:00:00]} gxh5 {[%emt 0:00:30]} 35. f4 {[%emt 0:00:00]} Re2 {[%emt 0:00:30]} 36. Kh3 {[%emt 0:00:00]} Bc1 {[%emt 0:00:30]} 37. f5 {[%emt 0:00:00]} Rf2 {[%emt 0:01:30]} 38. g4 {[%emt 0:00:30]} hxg4+ {[%emt 0:00:30]} 39. Kxg4 {[%emt 0:00:00]} Rf4+ {[%emt 0:00:30]} 40. Kg3 {[%emt 0:00:00]} Rxf5 {[%emt 0:00:00]} 41. Kg2 {[%emt 0:00:30]} Rc5 {[%emt 0:01:00]} 42. Kg3 {[%emt 0:00:00]} Rc2 {[%emt 0:00:00]} 43. Kg4 {[%emt 0:00:00]} a2 {[%emt 0:00:00]} 44. Kf3 {[%emt 0:00:30]} Bg5 {[%emt 0:00:30]} 0-1

[Event "Turkish Cup 2024"]
[Site "Denizli"]
[Date "2024.08.05"]
[Round "10"]
[White "Tektas, Onur Efe"]
[Black "Atis, Hasan"]
[Result "0-1"]
[ECO "B31"]
[WhiteElo "1851"]
[BlackElo "2080"]
[Annotator "NA RC"]
[PlyCount "104"]
[EventDate "2024.08.01"]
[EventType "swiss"]
[EventCountry "TUR"]
[SourceTitle "playchess.com"]
[Source "ChessBase"]
[SourceQuality "1"]
[TimeControl "5400+30"]

1. e4 {[%emt 0:01:00]} c5 {[%emt 0:01:00]} 2. Nf3 {[%emt 0:00:00]} Nc6 {[%emt 0:00:00]} 3. Bb5 {[%emt 0:00:00]} g6 {[%emt 0:00:00]} 4. c3 {[%emt 0:01:30]} Nf6 {[%emt 0:01:30]} 5. d3 {[%emt 0:01:30]} Bg7 {[%emt 0:01:30]} 6. O-O {[%emt 0:00:30]} O-O {[%emt 0:00:30]} 7. Re1 {[%emt 0:00:30]} Qb6 {[%emt 0:02:30]} 8. a4 {[%emt 0:05:30]} d5 {[%emt 0:01:30]} 9. h3 {[%emt 0:12:30]} h6 {[%emt 0:10:30]} 10. e5 {[%emt 0:08:30]} Ne8 {[%emt 0:00:30]} 11. d4 {[%emt 0:00:00]} cxd4 {[%emt 0:02:30]} 12. cxd4 {[%emt 0:00:00]} Nc7 {[%emt 0:00:30]} 13. Nc3 {[%emt 0:03:30]} Bf5 {[%emt 0:05:30]} 14. b3 {[%emt 0:08:30]} Nb4 {[%emt 0:13:30]} 15. a5 {[%emt 0:04:30]} Qe6 {[%emt 0:00:00]} 16. Ra4 {[%emt 0:01:30]} Nxb5 {[%emt 0:02:00]} 17. Nxb5 {[%emt 0:00:00]} Nd3 {[%emt 0:09:30]} 18. Nc7 {[%emt 0:05:00]} Qc6 {[%emt 0:00:30]} 19. Nxa8 {[%emt 0:00:30]} Nxe1 {[%emt 0:00:00]} 20. Nxe1 {[%emt 0:02:30]} Rxa8 {[%emt 0:00:00]} 21. Be3 {[%emt 0:04:30]} g5 {[%emt 0:04:30]} 22. Qc1 {[%emt 0:06:30]} Qb5 {[%emt 0:03:30]} 23. Qa3 {[%emt 0:01:30]} Bf8 {[%emt 0:04:30]} 24. Qb4 {[%emt 0:02:30]} Qa6 {[%emt 0:03:30]} 25. Qd2 {[%emt 0:04:30]} Rc8 {[%emt 0:00:30]} 26. Ra1 {[%emt 0:01:30]} Kh7 {[%emt 0:00:30]} 27. g4 {[%emt 0:01:30]} Be4 {[%emt 0:00:30]} 28. f3 {[%emt 0:01:30]} Bg6 {[%emt 0:00:30]} 29. Kf2 {[%emt 0:01:30]} Qb5 {[%emt 0:00:00]} 30. Rc1 {[%emt 0:02:30]} Rxc1 {[%emt 0:01:00]} 31. Qxc1 {[%emt 0:00:30]} Qxb3 {[%emt 0:00:30]} 32. Qc8 {[%emt 0:00:30]} Bg7 {[%emt 0:02:30]} 33. Qc5 {[%emt 0:00:30]} a6 {[%emt 0:00:30]} 34. Qxe7 {[%emt 0:00:30]} Qa2+ {[%emt 0:00:00]} 35. Kf1 {[%emt 0:00:30]} Qxa5 {[%emt 0:02:00]} 36. Qxb7 {[%emt 0:00:30]} Qa2 {[%emt 0:01:30]} 37. Bf2 {[%emt 0:04:02]} a5 {[%emt 0:00:30]} 38. Qe7 {[%emt 0:01:53]} a4 {[%emt 0:03:30]} 39. h4 {[%emt 0:01:44]} gxh4 {[%emt 0:00:00]} 40. f4 {[%emt 0:00:52]} Qc4+ {[%emt 0:01:00]} 41. Kg1 {[%emt 0:00:12]} Qe2 {[%emt 0:01:30]} 42. Qxh4 {[%emt 0:01:21]} a3 {[%emt 0:01:30]} 43. Qg3 {[%emt 0:00:30]} a2 {[%emt 0:00:30]} 44. Qa3 {[%emt 0:00:00]} Qxg4+ {[%emt 0:00:00]} 45. Kf1 {[%emt 0:00:02]} Bb1 {[%emt 0:00:00]} 46. Be3 {[%emt 0:01:01]} h5 {[%emt 0:01:30]} 47. Bc1 {[%emt 0:00:23]} Bh6 {[%emt 0:04:32]} 48. Bb2 {[%emt 0:03:09]} Qxf4+ {[%emt 0:00:30]} 49. Qf3 {[%emt 0:00:00]} Be4 {[%emt 0:00:28]} 50. Qxf4 {[%emt 0:00:43]} Bxf4 {[%emt 0:00:30]} 51. Ng2 {[%emt 0:00:00]} Bc1 {[%emt 0:00:30]} 52. Ba1 {[%emt 0:00:00]} Kg6 {[%emt 0:00:30]} 0-1

[Event "Turkish Cup 2024"]
[Site "Denizli"]
[Date "2024.08.05"]
[Round "10"]
[White "Bilir, Ibrahim"]
[Black "Yuksel, Davut Can"]
[Result "1/2-1/2"]
[ECO "C91"]
[WhiteElo "1830"]
[BlackElo "1882"]
[Annotator "NA RC"]
[PlyCount "133"]
[EventDate "2024.08.01"]
[EventType "swiss"]
[EventCountry "TUR"]
[SourceTitle "playchess.com"]
[Source "ChessBase"]
[SourceQuality "1"]
[TimeControl "5400+30"]

1. e4 {[%emt 0:03:00]} e5 {[%emt 0:01:00]} 2. Nf3 {[%emt 0:00:30]} Nc6 {[%emt 0:00:30]} 3. Bb5 {[%emt 0:00:00]} a6 {[%emt 0:00:00]} 4. Ba4 {[%emt 0:00:00]} Nf6 {[%emt 0:00:00]} 5. O-O {[%emt 0:00:00]} Be7 {[%emt 0:00:30]} 6. Re1 {[%emt 0:00:00]} b5 {[%emt 0:00:30]} 7. Bb3 {[%emt 0:00:00]} O-O {[%emt 0:00:30]} 8. d4 {[%emt 0:00:00]} d6 {[%emt 0:01:30]} 9. c3 {[%emt 0:00:30]} Bg4 {[%emt 0:01:30]} 10. Be3 {[%emt 0:00:00]} Na5 {[%emt 0:08:30]} 11. Bc2 {[%emt 0:04:00]} Nc4 {[%emt 0:01:30]} 12. Bc1 {[%emt 0:00:30]} Nd7 {[%emt 0:00:30]} 13. b3 {[%emt 0:03:30]} Ncb6 {[%emt 0:01:30]} 14. Bb2 {[%emt 0:02:30]} c5 {[%emt 0:02:30]} 15. h3 {[%emt 0:05:30]} Bh5 {[%emt 0:01:30]} 16. Nbd2 {[%emt 0:02:30]} Bf6 {[%emt 0:02:30]} 17. dxc5 {[%emt 0:08:30]} Bxf3 {[%emt 0:00:30]} 18. Qxf3 {[%emt 0:00:30]} dxc5 {[%emt 0:01:30]} 19. Rad1 {[%emt 0:01:30]} Qc7 {[%emt 0:03:30]} 20. Nf1 {[%emt 0:00:30]} g6 {[%emt 0:01:30]} 21. Ne3 {[%emt 0:02:30]} Bg7 {[%emt 0:00:30]} 22. Re2 {[%emt 0:08:30]} Rfd8 {[%emt 0:01:30]} 23. Red2 {[%emt 0:00:00]} Nf8 {[%emt 0:00:00]} 24. Nd5 {[%emt 0:01:00]} Nxd5 {[%emt 0:01:00]} 25. Rxd5 {[%emt 0:00:00]} Rxd5 {[%emt 0:00:30]} 26. Rxd5 {[%emt 0:01:00]} Rd8 {[%emt 0:00:00]} 27. Qd3 {[%emt 0:05:30]} Rxd5 {[%emt 0:04:00]} 28. Qxd5 {[%emt 0:00:30]} Qd7 {[%emt 0:00:30]} 29. Qxd7 {[%emt 0:06:30]} Nxd7 {[%emt 0:00:00]} 30. Bc1 {[%emt 0:05:30]} Bf8 {[%emt 0:03:00]} 31. Be3 {[%emt 0:02:30]} Nb6 {[%emt 0:04:30]} 32. Bd3 {[%emt 0:05:30]} f6 {[%emt 0:03:30]} 33. f3 {[%emt 0:02:30]} Kf7 {[%emt 0:01:30]} 34. Kf2 {[%emt 0:00:30]} Ke6 {[%emt 0:00:30]} 35. g4 {[%emt 0:00:00]} g5 {[%emt 0:01:30]} 36. Ke2 {[%emt 0:01:00]} Kd6 {[%emt 0:00:00]} 37. Kd2 {[%emt 0:00:30]} Kc6 {[%emt 0:00:00]} 38. Kc2 {[%emt 0:02:30]} c4 {[%emt 0:03:30]} 39. Be2 {[%emt 0:00:30]} Bc5 {[%emt 0:02:30]} 40. Bxc5 {[%emt 0:01:30]} Kxc5 {[%emt 0:00:30]} 41. b4+ {[%emt 0:00:30]} Kc6 {[%emt 0:00:30]} 42. Kd2 {[%emt 0:00:30]} Na8 {[%emt 0:01:30]} 43. Ke3 {[%emt 0:02:30]} Nc7 {[%emt 0:00:30]} 44. Bf1 {[%emt 0:00:30]} Ne6 {[%emt 0:00:30]} 45. Kd2 {[%emt 0:01:30]} Kb6 {[%emt 0:02:30]} 46. Be2 {[%emt 0:04:30]} a5 {[%emt 0:00:30]} 47. a3 {[%emt 0:00:30]} Nf4 {[%emt 0:00:30]} 48. Bf1 {[%emt 0:00:00]} axb4 {[%emt 0:02:30]} 49. axb4 {[%emt 0:00:00]} Ng6 {[%emt 0:00:30]} 50. Ke3 {[%emt 0:00:30]} Kc6 {[%emt 0:01:30]} 51. Be2 {[%emt 0:00:30]} Nf8 {[%emt 0:00:30]} 52. Bf1 {[%emt 0:00:30]} Ne6 {[%emt 0:00:00]} 53. Be2 {[%emt 0:01:30]} Nc7 {[%emt 0:00:00]} 54. Bd1 {[%emt 0:00:00]} Kd6 {[%emt 0:01:30]} 55. Be2 {[%emt 0:01:00]} Ke6 {[%emt 0:00:30]} 56. Bf1 {[%emt 0:00:30]} Kf7 {[%emt 0:01:30]} 57. Be2 {[%emt 0:00:30]} Kg6 {[%emt 0:00:30]} 58. Bf1 {[%emt 0:00:30]} h5 {[%emt 0:00:00]} 59. Be2 {[%emt 0:00:00]} hxg4 {[%emt 0:01:00]} 60. hxg4 {[%emt 0:00:00]} Kf7 {[%emt 0:00:00]} 61. Bf1 {[%emt 0:00:30]} Ke6 {[%emt 0:01:00]} 62. Be2 {[%emt 0:00:30]} Kd6 {[%emt 0:00:30]} 63. Bf1 {[%emt 0:00:30]} Ne6 {[%emt 0:00:30]} 64. Be2 {[%emt 0:00:30]} Nf4 {[%emt 0:02:30]} 65. Bf1 {[%emt 0:00:30]} Kc6 {[%emt 0:00:00]} 66. Be2 {[%emt 0:00:30]} Nxe2 {[%emt 0:01:00]} 67. Kxe2 {[%emt 0:00:00]} 1/2-1/2

[Event "Turkish Cup 2024"]
[Site "Denizli"]
[Date "2024.08.05"]
[Round "10"]
[White "Zeyrek, Ayaz"]
[Black "Er, Mira"]
[Result "1-0"]
[ECO "A60"]
[WhiteElo "1798"]
[BlackElo "1770"]
[Annotator "NA RC"]
[PlyCount "60"]
[EventDate "2024.08.01"]
[EventType "swiss"]
[EventCountry "TUR"]
[SourceTitle "playchess.com"]
[Source "ChessBase"]
[SourceQuality "1"]
[TimeControl "5400+30"]

1. d4 {[%emt 0:01:00]} c5 {[%emt 0:01:00]} 2. d5 {[%emt 0:00:30]} e6 {[%emt 0:00:00]} 3. c4 {[%emt 0:00:30]} exd5 {[%emt 0:00:00]} 4. cxd5 {[%emt 0:00:30]} Bd6 {[%emt 0:00:00]} 5. Nc3 {[%emt 0:00:30]} Nf6 {[%emt 0:00:00]} 6. g3 {[%emt 0:01:30]} O-O {[%emt 0:01:30]} 7. Bg2 {[%emt 0:00:00]} Re8 {[%emt 0:00:30]} 8. Nf3 {[%emt 0:00:00]} a6 {[%emt 0:00:30]} 9. a4 {[%emt 0:00:30]} Bf8 {[%emt 0:01:30]} 10. O-O {[%emt 0:00:30]} d6 {[%emt 0:00:30]} 11. Nd2 {[%emt 0:02:30]} Nbd7 {[%emt 0:05:30]} 12. Nc4 {[%emt 0:07:30]} Nb6 {[%emt 0:03:30]} 13. Na3 {[%emt 0:01:30]} Bf5 {[%emt 0:05:30]} 14. Re1 {[%emt 0:10:30]} Ne4 {[%emt 0:07:30]} 15. a5 {[%emt 0:12:30]} Nd7 {[%emt 0:03:30]} 16. Nc4 {[%emt 0:00:00]} b5 {[%emt 0:07:30]} 17. axb6 {[%emt 0:00:00]} Nxb6 {[%emt 0:00:30]} 18. Na5 {[%emt 0:01:30]} Nd7 {[%emt 0:09:30]} 19. f3 {[%emt 0:02:30]} Nxc3 {[%emt 0:02:30]} 20. bxc3 {[%emt 0:07:30]} Qc7 {[%emt 0:02:30]} 21. Bf4 {[%emt 0:15:30]} Be7 {[%emt 0:07:30]} 22. e4 {[%emt 0:04:30]} Bg6 {[%emt 0:00:00]} 23. Qc2 {[%emt 0:05:30]} Nb6 {[%emt 0:03:00]} 24. Qb3 {[%emt 0:02:30]} c4 {[%emt 0:07:30]} 25. Qb4 {[%emt 0:02:30]} Rab8 {[%emt 0:04:30]} 26. Qa3 {[%emt 0:02:02]} Nd7 {[%emt 0:03:30]} 27. Bf1 {[%emt 0:00:54]} Nc5 {[%emt 0:09:29]} 28. Bxc4 {[%emt 0:00:45]} f5 {[%emt 0:02:41]} 29. Nc6 {[%emt 0:00:10]} fxe4 {[%emt 0:00:22]} 30. Qxc5 {[%emt 0:00:19]} Qd7 {[%emt 0:00:45]} 1-0

[Event "Turkish Cup 2024"]
[Site "Denizli"]
[Date "2024.08.05"]
[Round "10"]
[White "Saricam, Ege"]
[Black "Cakir, Ege"]
[Result "0-1"]
[ECO "B40"]
[WhiteElo "1794"]
[BlackElo "1889"]
[Annotator "NA RC"]
[PlyCount "50"]
[EventDate "2024.08.01"]
[EventType "swiss"]
[EventCountry "TUR"]
[SourceTitle "playchess.com"]
[Source "ChessBase"]
[SourceQuality "1"]
[TimeControl "5400+30"]

1. e4 {[%emt 0:01:00]} c5 {[%emt 0:01:00]} 2. Nf3 {[%emt 0:00:30]} e6 {[%emt 0:00:30]} 3. d4 {[%emt 0:00:00]} cxd4 {[%emt 0:00:30]} 4. Nxd4 {[%emt 0:00:00]} Nf6 {[%emt 0:00:30]} 5. Bd3 {[%emt 0:00:00]} Nc6 {[%emt 0:00:00]} 6. Nxc6 {[%emt 0:00:00]} bxc6 {[%emt 0:00:00]} 7. O-O {[%emt 0:00:00]} d5 {[%emt 0:00:00]} 8. e5 {[%emt 0:00:00]} Nd7 {[%emt 0:00:00]} 9. Re1 {[%emt 0:00:00]} Qb6 {[%emt 0:01:30]} 10. c3 {[%emt 0:00:00]} Bc5 {[%emt 0:02:30]} 11. Qf3 {[%emt 0:01:30]} O-O {[%emt 0:08:30]} 12. b4 {[%emt 0:04:30]} Be7 {[%emt 0:00:30]} 13. Qh3 {[%emt 0:02:30]} f5 {[%emt 0:02:30]} 14. g4 {[%emt 0:10:30]} Qxf2+ {[%emt 0:03:30]} 15. Kxf2 {[%emt 0:02:30]} fxg4+ {[%emt 0:00:00]} 16. Kg3 {[%emt 0:01:30]} gxh3 {[%emt 0:00:00]} 17. Kg4 {[%emt 0:06:30]} a5 {[%emt 0:02:30]} 18. Bd2 {[%emt 0:02:30]} axb4 {[%emt 0:02:30]} 19. cxb4 {[%emt 0:00:30]} c5 {[%emt 0:00:00]} 20. bxc5 {[%emt 0:03:30]} Ra4+ {[%emt 0:01:00]} 21. Kxh3 {[%emt 0:06:30]} Rf3+ {[%emt 0:00:30]} 22. Kg2 {[%emt 0:00:00]} Rxd3 {[%emt 0:00:00]} 23. Re3 {[%emt 0:00:00]} Rxe3 {[%emt 0:01:00]} 24. Bxe3 {[%emt 0:00:00]} Bxc5 {[%emt 0:00:00]} 25. Nc3 {[%emt 0:00:00]} Rg4+ {[%emt 0:01:00]} 0-1

[Event "Turkish Cup 2024"]
[Site "Denizli"]
[Date "2024.08.05"]
[Round "10"]
[White "Saltik, Suleyman"]
[Black "Yildirim, Ibrahim Halil"]
[Result "0-1"]
[ECO "C89"]
[WhiteElo "1776"]
[BlackElo "2024"]
[Annotator "NA RC"]
[PlyCount "78"]
[EventDate "2024.08.01"]
[EventType "swiss"]
[EventCountry "TUR"]
[SourceTitle "playchess.com"]
[Source "ChessBase"]
[SourceQuality "1"]
[TimeControl "5400+30"]

1. e4 {[%emt 0:01:00]} e5 {[%emt 0:09:00]} 2. Nf3 {[%emt 0:00:00]} Nc6 {[%emt 0:00:30]} 3. Bb5 {[%emt 0:01:00]} a6 {[%emt 0:00:30]} 4. Ba4 {[%emt 0:00:00]} Nf6 {[%emt 0:00:00]} 5. O-O {[%emt 0:00:00]} Be7 {[%emt 0:01:00]} 6. Re1 {[%emt 0:00:00]} b5 {[%emt 0:00:00]} 7. Bb3 {[%emt 0:00:00]} O-O {[%emt 0:00:00]} 8. c3 {[%emt 0:00:30]} d5 {[%emt 0:01:30]} 9. exd5 {[%emt 0:01:30]} Nxd5 {[%emt 0:00:00]} 10. Nxe5 {[%emt 0:05:30]} Nxe5 {[%emt 0:00:00]} 11. Rxe5 {[%emt 0:00:30]} c6 {[%emt 0:00:00]} 12. Bxd5 {[%emt 0:05:30]} cxd5 {[%emt 0:00:00]} 13. Qf3 {[%emt 0:04:30]} Bd6 {[%emt 0:04:30]} 14. Re1 {[%emt 0:07:30]} Qh4 {[%emt 0:21:30]} 15. h3 {[%emt 0:05:30]} Bd7 {[%emt 0:03:30]} 16. d4 {[%emt 0:01:30]} Rae8 {[%emt 0:00:00]} 17. Be3 {[%emt 0:02:30]} Re6 {[%emt 0:02:00]} 18. Nd2 {[%emt 0:11:30]} Rg6 {[%emt 0:40:26]} 19. Kf1 {[%emt 0:04:30]} Re8 {[%emt 0:00:06]} 20. Ke2 {[%emt 0:06:30]} Rf6 {[%emt 0:00:41]} 21. g3 {[%emt 0:02:30]} Qxh3 {[%emt 0:02:27]} 22. Qh1 {[%emt 0:03:30]} Qg4+ {[%emt 0:07:19]} 23. f3 {[%emt 0:01:30]} Qg6 {[%emt 0:04:44]} 24. Rac1 {[%emt 0:03:30]} Bxg3 {[%emt 0:01:02]} 25. Rg1 {[%emt 0:00:30]} Rxe3+ {[%emt 0:01:13]} 26. Kxe3 {[%emt 0:00:00]} Re6+ {[%emt 0:00:11]} 27. Ne4 {[%emt 0:00:00]} dxe4 {[%emt 0:00:00]} 28. f4 {[%emt 0:00:30]} Qg4 {[%emt 0:01:33]} 29. Rcf1 {[%emt 0:16:17]} Rf6 {[%emt 0:00:11]} 30. Kd2 {[%emt 0:01:04]} Rxf4 {[%emt 0:00:00]} 31. Rxf4 {[%emt 0:01:54]} Qxf4+ {[%emt 0:00:30]} 32. Kc2 {[%emt 0:00:30]} Qf2+ {[%emt 0:00:30]} 33. Kb1 {[%emt 0:00:30]} Qh2 {[%emt 0:00:30]} 34. Qxh2 {[%emt 0:00:30]} Bxh2 {[%emt 0:00:30]} 35. Re1 {[%emt 0:00:30]} Bg3 {[%emt 0:00:30]} 36. Re2 {[%emt 0:00:30]} f5 {[%emt 0:00:30]} 37. Kc1 {[%emt 0:00:30]} e3 {[%emt 0:00:30]} 38. b3 {[%emt 0:00:30]} f4 {[%emt 0:00:30]} 39. Kc2 {[%emt 0:00:30]} Bf2 {[%emt 0:00:00]} 0-1